bitfinex/quotes_SOLUSD_20250726
["timestamp","ask_amount","ask_price","bid_price","bid_amount"]
[1753488314655,5.34616412,187.05,187.0,0.69]
[1753488315237,5.34616412,187.05,187.01,0.69]
[1753488315460,5.34616412,187.05,187.02,0.69]
[1753488315683,50.86365391,187.08,187.02,0.69]
[1753488315964,5.34559255,187.07,187.02,0.69]
[1753488316276,5.34559255,187.07,187.03,0.69]
[1753488316432,42.84535751,187.08,187.04,0.69]
[1753488316744,5.34535751,187.08,187.04,0.69]
[1753488319369,5.34535751,187.08,187.02,38.03470217]
[1753488319558,5.47535751,187.08,187.02,38.19]
[1753488319755,0.13,187.07,187.02,37.5]
[1753488319961,0.13,187.06,187.02,37.5]
[1753488320347,5.34616412,187.05,187.02,37.5]
[1753488320747,0.13,187.04,187.0,87.4]
[1753488320948,0.13,187.04,186.99,37.52]
[1753488321165,0.13,187.04,186.99,38.21]
[1753488321552,5.34616412,187.05,186.99,37.52]
[1753488321866,5.34616412,187.05,187.0,0.69]
[1753488322061,5.47616412,187.05,187.0,0.69]
[1753488323866,0.13,187.04,186.99,37.52]
[1753488324176,0.13,187.04,186.99,38.21]
[1753488324977,5.34616412,187.05,186.99,37.52]
[1753488325275,5.34616412,187.05,187.0,0.69]
[1753488325575,5.34616412,187.05,187.01,0.69]
[1753488326448,0.13,187.05,186.99,38.21]
[1753488327271,0.13,187.05,187.0,0.69]
[1753488327457,0.13,187.07,187.0,0.69]
[1753488327880,4.12667355,187.07,187.0,0.69]
[1753488328061,0.13,187.07,187.0,0.69]
[1753488328959,18.71057413,187.06,186.99,37.52]
[1753488329167,5.6325064,187.05,186.96,125.57]
[1753488329463,5.6325064,187.05,186.96,151.57]
[1753488329664,0.13,187.04,186.96,87.4]
[1753488330655,7.59131732,187.05,186.94,26.0]
[1753488330856,0.13,187.04,186.96,26.0]
[1753488331065,18.71357535,187.03,186.97,0.69]
[1753488331252,22.30768627,187.03,186.97,0.69]
[1753488331453,18.71357535,187.03,186.97,0.69]
[1753488332596,22.31065666,187.03,186.97,0.69]
[1753488332751,13.36683954,187.03,186.96,26.0]
[1753488333074,0.13,187.02,186.96,26.0]
[1753488333274,4.1264933,187.02,186.96,26.0]
[1753488333679,4.1264933,187.02,186.95,0.69]
[1753488333865,3.9964933,187.02,186.95,0.69]
[1753488334069,0.13,187.01,186.95,0.69]
[1753488335183,5.34759358,187.0,186.95,0.69]
[1753488335386,9.34408688,187.0,186.96,0.69]
[1753488337482,9.34408688,187.0,186.93,63.54]
[1753488337483,9.34408688,187.0,186.94,0.69]
[1753488339490,5.34759358,187.0,186.94,0.69]
[1753488340291,5.34759358,187.0,186.96,26.0]
[1753488340580,5.3470217,187.02,186.97,26.71]
[1753488340781,5.3470217,187.02,186.98,0.71]
[1753488341170,9.34024995,187.02,186.98,0.71]
[1753488341375,5.3470217,187.02,186.98,0.71]
[1753488342283,9.34002617,187.02,186.98,0.71]
[1753488343679,9.34002617,187.02,186.99,0.71]
[1753488343878,5.34673581,187.03,186.99,0.71]
[1753488344082,9.34139569,187.03,186.99,0.71]
[1753488344272,12.93714797,187.03,186.99,0.71]
[1753488344466,3.99465988,187.02,186.99,0.71]
[1753488344884,5.34730763,187.01,186.97,26.71]
[1753488345064,5.34730763,187.01,186.98,0.71]
[1753488345974,5.34730763,187.01,186.99,0.71]
[1753488346780,5.34530682,187.08,187.0,26.0]
[1753488346970,5.34530682,187.08,187.01,0.71]
[1753488347173,9.33965353,187.08,187.01,0.71]
[1753488348066,9.33965353,187.08,187.01,6.05728615]
[1753488348269,9.33965353,187.08,187.02,0.71]
[1753488350397,0.13,187.07,186.99,26.0]
[1753488350609,7.71874097,187.07,186.99,26.0]
[1753488350897,0.13,187.06,186.98,0.71]
[1753488351988,18.71157443,187.05,186.98,0.71]
[1753488352294,41.60449209,187.04,186.98,0.71]
[1753488352506,3.99449209,187.03,186.98,0.71]
[1753488352792,4.12449209,187.03,186.98,0.71]
[1753488354393,5.3470217,187.02,186.98,0.71]
[1753488354600,9.34151379,187.02,186.98,0.71]
[1753488356390,5.4770217,187.02,186.98,0.71]
[1753488356596,5.34673581,187.03,186.98,0.71]
[1753488356797,9.47215149,187.03,186.98,0.71]
[1753488357001,3.99541568,187.02,186.98,0.71]
[1753488359200,5.34730763,187.01,186.98,0.71]
[1753488360884,18.7155767,187.01,186.95,0.71]
[1753488361089,37.57,187.0,186.93,0.71]
[1753488361306,5.34787956,186.99,186.95,26.0]
[1753488361477,5.34787956,186.99,186.95,0.71]
[1753488361682,5.34787956,186.99,186.95,26.71]
[1753488363007,5.34787956,186.99,186.95,26.0]
[1753488363301,5.34845162,186.97,186.95,26.0]
[1753488364182,5.34845162,186.97,186.88,6.0288]
[1753488364400,37.42,186.96,186.92,0.71]
[1753488365304,5.3490238,186.95,186.93,0.71]
[1753488371101,5.3490238,186.95,186.93,0.7]
[1753488371708,42.76882462,186.96,186.93,26.0]
[1753488371910,37.4,186.99,186.94,0.7]
[1753488373106,5.3470217,187.02,186.95,1.5864]
[1753488373312,5.3470217,187.02,186.96,0.7]
[1753488373519,5.3470217,187.02,186.96,1.23487376]
[1753488373693,5.3470217,187.02,186.96,0.53487376]
[1753488373894,5.3470217,187.02,186.97,0.7]
[1753488374717,5.3470217,187.02,186.98,0.7]
[1753488375616,9.34300696,187.02,186.99,0.7]
[1753488375809,9.34300696,187.02,186.97,0.7]
[1753488376415,9.47300696,187.02,186.97,0.7]
[1753488376713,0.13,187.01,186.95,95.1686]
[1753488376902,0.13,187.01,186.95,1.5864]
[1753488377098,18.71457597,187.02,186.96,0.7]
[1753488377302,5.3470217,187.02,186.96,0.7]
[1753488378114,5.3470217,187.02,186.98,26.0]
[1753488378298,5.3470217,187.02,186.98,26.7]
[1753488378796,5.3470217,187.02,186.99,0.7]
[1753488380601,5.3470217,187.02,186.98,26.0]
[1753488380796,5.3470217,187.02,186.98,26.7]
[1753488381204,42.74673581,187.03,186.99,0.7]
[1753488382696,5.34673581,187.03,186.99,0.7]
[1753488382902,9.34246727,187.03,186.99,0.7]
[1753488383116,5.34673581,187.03,187.0,0.7]
[1753488383307,9.34254552,187.03,187.0,0.7]
[1753488384415,9.34254552,187.03,186.98,26.0]
[1753488384609,9.34254552,187.03,187.01,0.7]
[1753488384807,5.34673581,187.03,187.01,0.7]
[1753488385022,9.34262023,187.03,186.99,0.7]
[1753488385208,9.34262023,187.03,186.98,26.0]
[1753488385408,9.34262023,187.03,187.0,0.7]
[1753488386122,9.34262023,187.03,186.98,26.0]
[1753488386313,42.74653085,187.04,187.01,0.7]
[1753488387412,42.74653085,187.04,186.98,26.0]
[1753488387612,42.74653085,187.04,186.99,0.7]
[1753488387820,42.74653085,187.04,187.0,0.7]
[1753488389627,5.34653085,187.04,187.0,0.7]
[1753488390030,9.34151367,187.04,186.98,26.0]
[1753488390236,5.34653085,187.04,187.01,0.7]
[1753488390420,9.34154261,187.04,187.01,0.7]
[1753488390743,9.34154261,187.04,186.99,0.7]
[1753488391028,9.34154261,187.04,187.0,0.7]
[1753488391530,12.93660243,187.04,187.0,0.7]
[1753488391732,8.94159067,187.04,187.0,0.7]
[1753488392232,5.3470217,187.02,187.0,0.7]
[1753488392426,5.3470217,187.02,186.98,26.0]
[1753488392933,5.3470217,187.02,186.98,26.7]
[1753488395534,9.34548678,187.02,186.98,26.7]
[1753488396138,5.3470217,187.02,186.99,0.7]
[1753488397244,9.3451707,187.03,186.99,0.7]
[1753488397432,12.94112393,187.03,186.99,0.7]
[1753488397621,8.94257326,187.03,187.0,0.7]
[1753488397822,5.34673581,187.03,187.0,0.7]
[1753488398039,9.34528564,187.03,186.98,26.0]
[1753488398222,12.94337408,187.03,187.01,0.66]
[1753488398423,8.94482425,187.03,187.01,0.66]
[1753488398725,5.34673581,187.03,186.98,26.0]
[1753488398922,5.34673581,187.03,186.99,0.66]
[1753488399327,9.34523612,187.03,186.99,0.66]
[1753488399741,3.59782452,187.04,186.99,0.66]
[1753488399746,8.94436926,187.04,186.99,0.66]
[1753488399928,5.34654474,187.04,186.99,0.66]
[1753488400246,9.34469493,187.04,186.99,0.66]
[1753488401624,9.34469493,187.04,187.0,0.66]
[1753488403144,0.13,187.03,186.98,87.4]
[1753488403334,4.12815019,187.03,186.98,87.4]
[1753488403648,3.99815019,187.03,186.99,0.66]
[1753488403824,7.59526804,187.03,186.99,0.66]
[1753488404345,7.59526804,187.03,187.0,0.66]
[1753488404866,18.71457597,187.02,186.98,87.4]
[1753488405050,41.46795663,187.01,186.95,26.66]
[1753488405342,7.72558221,187.0,186.95,26.66]
[1753488405642,7.59558221,187.0,186.95,26.0]
[1753488405854,0.13,186.99,186.94,0.66]
[1753488406025,0.13,186.98,186.92,0.66]
[1753488406342,37.34,186.97,186.92,0.66]
[1753488406723,3.99837632,186.96,186.92,0.66]
[1753488406921,5.3490238,186.95,186.92,0.66]
[1753488407529,18.8515833,186.95,186.9,0.66]
[1753488407730,4.12807647,186.94,186.88,0.66]
[1753488407945,37.38,186.93,186.88,26.66]
[1753488408142,37.38,186.93,186.88,26.0]
[1753488408341,37.38,186.93,186.89,0.66]
[1753488408855,37.38,186.93,186.9,0.66]
[1753488409255,42.72975663,186.93,186.91,0.66]
[1753488411035,42.72975663,186.93,186.89,26.0]
[1753488411339,42.72975663,186.93,186.85,126.2627]
[1753488411340,42.72975663,186.93,186.88,26.0]
[1753488411543,42.72975663,186.93,186.89,0.66]
[1753488411742,42.72975663,186.93,186.88,26.0]
[1753488411743,42.85975663,186.93,186.88,26.0]
[1753488413154,56.10374689,186.93,186.85,38.8627]
[1753488413327,4.12175747,186.92,186.82,37.36]
[1753488413532,37.36,186.91,186.86,0.66]
[1753488413733,37.36,186.91,186.87,0.66]
[1753488414156,37.36,186.92,186.87,0.66]
[1753488414655,37.36,186.92,186.88,0.66]
[1753488415057,5.35016853,186.91,186.88,0.66]
[1753488415431,5.35016853,186.91,186.86,26.0]
[1753488415765,5.35016853,186.91,186.89,0.66]
[1753488419633,5.35016853,186.91,186.84,5.35209709]
[1753488419634,5.3495961,186.93,186.9,0.66]
[1753488420960,37.36,186.92,186.9,0.66]
[1753488421136,42.71009424,186.92,186.9,0.66]
[1753488422362,42.6890238,186.95,186.91,0.66]
[1753488422662,5.3490238,186.95,186.91,0.66]
[1753488423038,5.34872122,186.97,186.91,0.66]
[1753488425805,16.91468397,186.96,186.87,2.2191]
[1753488425964,37.47,186.95,186.87,2.2191]
[1753488426267,0.13,186.94,186.87,28.2191]
[1753488427044,4.11232639,186.94,186.87,28.2191]
[1753488427244,0.13,186.93,186.84,37.34]
[1753488427470,37.38,186.92,186.85,0.66]
[1753488427675,5.35016853,186.91,186.85,0.66]
[1753488430367,18.85558985,186.91,186.85,0.66]
[1753488430563,0.13,186.9,186.83,7.0154]
[1753488431177,0.13,186.9,186.83,0.72]
[1753488431669,5.35074107,186.89,186.83,0.72]
[1753488431853,5.48074107,186.89,186.83,0.72]
[1753488432666,5.48074107,186.89,186.78,0.72]
[1753488432667,16.78468397,186.87,186.78,0.72]
[1753488432865,4.11179806,186.86,186.78,0.72]
[1753488433050,3.98179806,186.86,186.78,26.72]
[1753488433250,0.13,186.85,186.78,26.72]
[1753488433473,0.13,186.85,186.78,0.72]
[1753488433673,5.35217298,186.84,186.78,26.72]
[1753488433876,5.35217298,186.84,186.78,26.0]
[1753488434054,5.35217298,186.84,186.79,0.72]
[1753488434377,5.35217298,186.84,186.8,0.72]
[1753488438761,5.35217298,186.84,186.79,26.0]
[1753488438979,0.13,186.84,186.79,26.0]
[1753488439189,37.51,186.84,186.79,26.72]
[1753488439776,37.38,186.84,186.8,0.72]
[1753488439971,37.38,186.84,186.81,0.72]
[1753488440482,37.38,186.84,186.79,26.0]
[1753488440483,0.13,186.83,186.79,26.0]
[1753488440685,37.38,186.84,186.8,0.72]
[1753488441087,5.35245945,186.83,186.81,0.72]
[1753488441474,37.38,186.86,186.82,0.72]
[1753488441679,37.38,186.86,186.83,0.72]
[1753488441883,37.38,186.86,186.79,26.0]
[1753488442082,37.38,186.86,186.81,0.72]
[1753488442282,37.51,186.86,186.81,0.72]
[1753488443075,5.35188654,186.85,186.82,0.72]
[1753488444877,5.35188654,186.85,186.83,0.72]
[1753488445067,5.35188654,186.85,186.84,0.72]
[1753488446384,37.36,186.87,186.84,0.72]
[1753488446385,5.35160012,186.86,186.84,0.72]
[1753488446567,5.48160012,186.86,186.8,0.72]
[1753488451691,5.48160012,186.86,186.79,26.0]
[1753488451692,18.73060044,186.86,186.79,26.0]
[1753488451901,4.11790526,186.85,186.78,26.72]
[1753488452198,7.70762054,186.85,186.78,26.72]
[1753488452395,7.70762054,186.85,186.78,26.0]
[1753488452695,7.70762054,186.85,186.79,0.72]
[1753488454674,5.35217298,186.84,186.79,0.72]
[1753488454875,9.34007824,186.84,186.79,0.72]
[1753488455074,9.34007824,186.84,186.8,0.72]
[1753488457502,5.48217298,186.84,186.8,0.72]
[1753488458099,18.86260543,186.84,186.78,26.66]
[1753488458999,18.86260543,186.84,186.75,124.78]
[1753488459000,16.78468397,186.82,186.75,38.04]
[1753488459304,5.35331905,186.8,186.75,0.66]
[1753488459497,5.35331905,186.8,186.74,6.5645]
[1753488459703,5.35331905,186.8,186.76,0.66]
[1753488462200,5.35331905,186.8,186.74,6.5645]
[1753488462201,13.51080884,186.84,186.77,0.66]
[1753488462406,37.36,186.83,186.77,0.66]
[1753488462998,5.35274595,186.82,186.77,0.66]
[1753488464205,5.35274595,186.82,186.78,0.66]
[1753488464600,5.35274595,186.82,186.79,0.66]
[1753488467484,5.35274595,186.82,186.77,26.66]
[1753488467685,5.35274595,186.82,186.78,0.66]
[1753488468094,16.91468397,186.81,186.69,95.512]
[1753488468294,0.13,186.8,186.69,8.112]
[1753488468498,37.38,186.79,186.7,0.66]
[1753488468699,3.72171812,186.78,186.7,0.66]
[1753488468897,0.13,186.77,186.7,0.66]
[1753488469411,0.13,186.77,186.71,26.0]
[1753488469714,0.13,186.77,186.72,0.66]
[1753488470009,0.13,186.77,186.71,26.0]
[1753488470010,5.35446562,186.76,186.73,0.66]
[1753488470589,5.35446562,186.76,186.74,0.66]
[1753488471388,5.35446562,186.76,186.75,0.66]
[1753488472197,5.35389227,186.78,186.75,0.66]
[1753488474012,5.35389227,186.78,186.73,0.66]
[1753488474197,5.35389227,186.78,186.74,0.66]
[1753488474900,5.48389227,186.78,186.7,87.4]
[1753488475102,16.91468397,186.77,186.67,124.78]
[1753488475298,0.13,186.76,186.67,0.66]
[1753488475501,37.38,186.75,186.67,0.66]
[1753488475694,37.51,186.75,186.67,0.66]
[1753488475913,37.51,186.75,186.68,26.0]
[1753488476312,37.51,186.75,186.68,26.66]
[1753488476623,5.35503909,186.74,186.68,26.66]
[1753488478117,0.13,186.73,186.68,26.66]
[1753488478801,0.13,186.72,186.66,0.66]
[1753488479825,3.99755401,186.73,186.66,0.66]
[1753488480024,5.35561268,186.72,186.66,0.66]
[1753488481507,5.35532587,186.73,186.66,0.66]
[1753488482307,18.74364054,186.73,186.66,0.66]
[1753488482512,0.13,186.72,186.65,87.4]
[1753488482713,4.12280364,186.72,186.65,87.4]
[1753488482928,0.13,186.71,186.63,0.66]
[1753488483239,37.38,186.7,186.63,26.66]
[1753488483532,5.35647329,186.69,186.63,26.66]
[1753488484235,5.35647329,186.69,186.64,0.66]
[1753488484542,5.35647329,186.69,186.6,131.72652074]
[1753488484543,0.13,186.68,186.62,0.66]
[1753488485034,18.74765653,186.69,186.62,0.66]
[1753488485404,18.87765653,186.69,186.62,0.66]
[1753488487031,0.13,186.68,186.62,0.66]
[1753488487614,18.74765653,186.69,186.62,0.66]
[1753488490438,18.87765653,186.69,186.62,0.66]
[1753488491132,16.91468397,186.68,186.6,0.69]
[1753488491538,16.78468397,186.68,186.6,0.69]
[1753488491846,0.13,186.67,186.6,0.69]
[1753488492033,37.4,186.66,186.6,0.69]
[1753488492217,18.75167425,186.65,186.6,0.69]
[1753488492618,18.75167425,186.65,186.61,0.69]
[1753488492818,18.88167425,186.65,186.59,0.69]
[1753488499437,5.35762121,186.65,186.59,0.69]
[1753488501244,5.35742198,186.66,186.59,6.58519006]
[1753488501430,5.35742198,186.66,186.59,5.89519006]
[1753488501636,5.35742198,186.66,186.6,0.69]
[1753488502837,0.13,186.65,186.6,0.69]
[1753488503043,0.13,186.64,186.58,26.69]
[1753488503831,0.13,186.64,186.58,0.69]
[1753488505039,5.35819535,186.63,186.58,0.69]
[1753488505242,5.48819535,186.63,186.58,0.69]
[1753488505756,5.35819535,186.63,186.59,0.69]
[1753488506835,18.88368374,186.63,186.56,1.5875]
[1753488507042,56.28368374,186.63,186.57,0.69]
[1753488507348,56.28368374,186.63,186.56,1.5875]
[1753488507349,0.13,186.62,186.56,2.2775]
[1753488508459,5.35876962,186.61,186.56,2.2775]
[1753488508635,5.35876962,186.61,186.57,0.69]
[1753488510256,50.92548839,186.63,186.57,0.69]
[1753488510257,18.75468866,186.62,186.57,0.69]
[1753488510433,18.88468866,186.62,186.57,0.69]
[1753488512843,5.3590568,186.6,186.55,0.69]
[1753488513159,5.3590568,186.6,186.56,0.69]
[1753488514255,5.4890568,186.6,186.55,0.69]
[1753488514555,5.4890568,186.6,186.54,6.2398]
[1753488514556,5.4890568,186.6,186.56,0.69]
[1753488515142,0.13,186.59,186.53,0.69]
[1753488515554,37.53,186.59,186.53,0.69]
[1753488515932,0.13,186.58,186.53,0.69]
[1753488516136,37.4,186.59,186.53,0.69]
[1753488516334,0.13,186.57,186.53,0.69]
[1753488516535,0.13,186.56,186.5,7.0913]
[1753488516740,7.70399921,186.58,186.51,0.69]
[1753488517043,5.35991852,186.57,186.51,0.69]
[1753488517957,5.35963889,186.58,186.53,26.0]
[1753488518161,5.35963889,186.58,186.54,0.72]
[1753488518753,5.35934401,186.59,186.54,0.72]
[1753488520058,42.75934401,186.59,186.54,0.72]
[1753488520434,42.88934401,186.59,186.54,0.72]
[1753488520642,3.99131305,186.58,186.54,0.72]
[1753488520844,42.88934401,186.59,186.54,0.72]
[1753488521157,0.13,186.58,186.51,0.72]
[1753488521365,7.7143435,186.58,186.51,0.72]
[1753488521563,7.5843435,186.58,186.51,0.72]
[1753488521768,0.13,186.57,186.51,0.72]
[1753488522865,18.7607204,186.56,186.51,0.72]
[1753488523048,37.4,186.55,186.51,0.72]
[1753488523856,5.36078052,186.54,186.51,0.72]
[1753488527671,5.36078052,186.54,186.49,0.72]
[1753488527967,18.76273184,186.54,186.5,0.72]
[1753488528173,0.13,186.53,186.42,1.5384]
[1753488528371,37.42,186.52,186.48,0.72]
[1753488528571,37.42,186.52,186.49,0.72]
[1753488529267,5.3616428,186.51,186.5,0.72]
[1753488530559,18.89574981,186.51,186.45,0.72]
[1753488530946,22.49034039,186.51,186.45,0.72]
[1753488531346,18.89574981,186.51,186.45,0.72]
[1753488533859,0.13,186.5,186.44,0.72]
[1753488534171,37.42,186.49,186.44,0.72]
[1753488534377,37.42,186.49,186.42,1.5384]
[1753488534571,37.42,186.49,186.45,0.72]
[1753488535478,5.36250536,186.48,186.45,0.72]
[1753488536061,5.46250536,186.48,186.42,2.2584]
[1753488536268,5.46250536,186.48,186.43,0.72]
[1753488536469,5.36250536,186.48,186.43,0.72]
[1753488536971,42.78250536,186.48,186.43,0.72]
[1753488537170,42.78250536,186.48,186.42,1.5384]
[1753488537371,42.78250536,186.48,186.44,0.72]
[1753488538076,42.78250536,186.48,186.45,0.72]
[1753488538277,5.36250536,186.48,186.42,1.5384]
[1753488538483,42.78250536,186.48,186.46,0.72]
[1753488539361,13.40410701,186.51,186.46,0.72]
[1753488539563,0.13,186.57,186.49,26.0]
[1753488539779,37.52,186.56,186.47,6.8136]
[1753488539983,16.91468397,186.55,186.47,0.72]
[1753488540366,0.13,186.54,186.47,0.72]
[1753488540572,37.58,186.53,186.47,0.72]
[1753488540774,37.71,186.53,186.47,0.72]
[1753488541091,16.91468397,186.52,186.44,63.42]
[1753488541259,16.78468397,186.52,186.45,0.72]
[1753488541464,42.94135535,186.52,186.45,0.72]
[1753488542791,56.34474372,186.52,186.45,0.72]
[1753488543869,42.92135535,186.52,186.45,0.72]
[1753488544568,43.05135535,186.52,186.45,0.72]
[1753488545278,56.45474372,186.52,186.45,0.72]
[1753488545679,0.13,186.51,186.45,0.72]
[1753488545924,0.13,186.51,186.43,6.8136]
[1753488546069,50.49842435,186.51,186.42,1.5384]
[1753488546263,16.78468397,186.49,186.42,1.5384]
[1753488546576,5.36279294,186.47,186.42,2.2584]
[1753488546768,5.36279294,186.47,186.43,0.72]
[1753488548790,5.49279294,186.47,186.43,0.72]
[1753488549397,16.78468397,186.46,186.34,1.5264]
[1753488549573,37.75,186.45,186.34,1.5264]
[1753488549894,37.75,186.45,186.36,26.0]
[1753488550072,37.75,186.45,186.37,0.68]
[1753488550272,37.62,186.45,186.37,0.68]
[1753488550687,37.6,186.46,186.37,6.04551989]
[1753488550990,37.6,186.46,186.38,0.68]
[1753488551194,18.89977529,186.47,186.38,0.68]
[1753488551396,0.13,186.46,186.38,0.68]
[1753488551797,4.12526808,186.46,186.38,0.68]
[1753488552093,4.12534711,186.46,186.38,0.68]
[1753488552283,4.12534711,186.46,186.37,0.68]
[1753488552284,0.13,186.45,186.37,0.68]
[1753488552598,5.36365586,186.44,186.38,26.0]
[1753488552909,5.49365586,186.44,186.38,26.68]
[1753488553504,5.49365586,186.44,186.37,0.68]
[1753488553505,37.75,186.43,186.37,0.68]
[1753488554698,44.43508397,186.46,186.37,0.68]
[1753488554699,5.3642313,186.42,186.37,0.68]
[1753488557306,5.36365586,186.44,186.37,0.68]
[1753488558488,5.36365586,186.44,186.37,6.04564383]
[1753488558691,5.36365586,186.44,186.37,5.36564383]
[1753488558899,5.36365586,186.44,186.38,0.68]
[1753488559412,5.36365586,186.44,186.4,26.0]
[1753488559705,5.36308055,186.46,186.41,0.68]
[1753488560204,5.36308055,186.46,186.42,0.68]
[1753488560500,5.49308055,186.46,186.4,26.0]
[1753488560695,5.49308055,186.46,186.4,26.68]
[1753488561195,5.36308055,186.46,186.4,26.68]
[1753488561411,0.13,186.45,186.4,26.68]
[1753488561706,5.36365586,186.44,186.4,26.68]
[1753488563316,5.36365586,186.44,186.41,0.68]
[1753488563481,5.36308055,186.46,186.41,0.68]
[1753488563680,5.49308055,186.46,186.41,0.68]
[1753488564300,0.13,186.45,186.41,0.68]
[1753488564504,18.77078193,186.46,186.41,0.68]
[1753488564804,18.90078193,186.46,186.41,0.68]
[1753488566006,5.36365586,186.44,186.41,0.68]
[1753488566403,5.36365586,186.44,186.38,87.4]
[1753488566591,5.36365586,186.44,186.39,0.68]
[1753488568080,5.36365586,186.44,186.39,6.04504202]
[1753488568280,5.36365586,186.44,186.4,0.68]
[1753488569308,5.36308055,186.46,186.4,0.68]
[1753488570805,5.49308055,186.46,186.4,0.68]
[1753488573311,0.13,186.45,186.38,92.76535112]
[1753488573492,0.13,186.45,186.39,0.68]
[1753488573887,17.01079595,186.47,186.39,6.04498358]
[1753488574094,13.40728981,186.47,186.4,0.68]
[1753488574297,17.01079595,186.47,186.4,0.68]
[1753488574594,13.40728981,186.47,186.4,0.68]
[1753488575100,18.77008275,186.47,186.4,0.68]
[1753488575597,22.37814796,186.47,186.4,0.68]
[1753488575803,0.13,186.46,186.4,0.68]
[1753488576121,4.13902381,186.46,186.4,0.68]
[1753488576506,4.1391469,186.46,186.4,0.68]
[1753488576811,5.36336819,186.45,186.4,0.68]
[1753488577512,5.36336819,186.45,186.38,92.76527853]
[1753488577715,5.36336819,186.45,186.41,0.68]
[1753488579524,0.13,186.45,186.41,0.68]
[1753488580941,5.36308055,186.46,186.38,87.4]
[1753488581093,8.97122928,186.47,186.42,0.72]
[1753488581296,5.36289395,186.47,186.42,0.72]
[1753488581931,5.36289395,186.47,186.43,0.72]
[1753488582097,5.49289395,186.47,186.41,0.72]
[1753488585520,5.36289395,186.47,186.4,87.4]
[1753488585703,0.13,186.46,186.4,88.12]
[1753488585910,0.13,186.46,186.41,0.72]
[1753488586419,0.13,186.46,186.4,87.4]
[1753488586627,0.13,186.46,186.42,0.72]
[1753488587123,5.36289395,186.47,186.42,0.72]
[1753488587329,9.50535191,186.47,186.42,0.72]
[1753488587527,5.36336819,186.45,186.4,87.4]
[1753488587721,5.36336819,186.45,186.41,0.72]
[1753488587924,5.36336819,186.45,186.42,0.72]
[1753488588110,5.36336819,186.45,186.43,0.72]
[1753488589846,5.36308055,186.46,186.43,0.72]
[1753488590335,5.36308055,186.46,186.4,0.72]
[1753488590643,5.49308055,186.46,186.4,0.72]
[1753488591818,5.49308055,186.46,186.39,0.72]
[1753488591819,4.14782976,186.45,186.39,0.72]
[1753488592026,7.75616509,186.45,186.39,0.72]
[1753488592421,7.75616509,186.45,186.38,88.12]
[1753488592615,3.73833533,186.44,186.38,0.72]
[1753488592814,0.13,186.43,186.36,26.72]
[1753488593237,0.13,186.43,186.37,0.72]
[1753488593747,5.3642313,186.42,186.37,0.72]
[1753488594638,5.3642313,186.42,186.36,26.0]
[1753488594838,5.3642313,186.42,186.38,0.72]
[1753488595338,5.36394357,186.43,186.38,0.72]
[1753488595642,5.49394357,186.43,186.38,0.72]
[1753488596923,0.13,186.42,186.36,26.72]
[1753488597123,16.91468397,186.42,186.34,88.12]
[1753488597332,18.77682402,186.4,186.34,88.12]
[1753488597537,0.13,186.39,186.34,88.12]
[1753488597726,0.13,186.39,186.34,0.72]